bitfinex/quotes_ETHUSD_20250721
["timestamp","ask_amount","ask_price","bid_price","bid_amount"]
[1753117083196,4.346,3779.5,3779.4,2.64590173]
[1753117085109,4.346,3779.5,3779.1,2.64612098]
[1753117085110,0.132,3779.4,3779.3,2.64597928]
[1753117085921,14.632,3779.4,3779.3,2.64597928]
[1753117087075,14.632,3779.4,3779.0,0.00718595]
[1753117087280,0.132,3779.2,3779.0,2.64614103]
[1753117087481,0.132,3779.2,3779.1,2.64613267]
[1753117089418,0.132,3779.2,3779.1,3.11303267]
[1753117089779,0.132,3779.2,3779.1,2.64613267]
[1753117090181,0.132,3779.2,3778.7,0.132]
[1753117090377,14.5,3779.4,3779.2,2.64606265]
[1753117090686,4.338,3779.3,3779.2,2.64606265]
[1753117091116,0.132,3779.2,3779.1,2.64610562]
[1753117091316,0.0330749,3779.3,3779.0,2.64618899]
[1753117091490,0.0330749,3779.3,3778.5,0.7905]
[1753117091491,4.338,3779.2,3778.5,0.7905]
[1753117091691,0.132,3779.0,3778.8,2.6463382]
[1753117092025,0.132,3778.8,3778.7,2.64641278]
[1753117092527,4.468,3779.0,3778.9,2.64627272]
[1753117092924,0.132,3779.0,3778.9,2.64627272]
[1753117093120,4.468,3779.0,3778.9,3.11317272]
[1753117093423,0.132,3779.0,3778.9,3.11317272]
[1753117094121,0.132,3779.0,3778.9,2.64627272]
[1753117094894,0.132,3779.0,3778.9,3.11317272]
[1753117095236,0.132,3779.0,3778.9,10.16692916]
[1753117097106,0.132,3779.0,3778.9,10.99042916]
[1753117097508,0.132,3779.0,3778.9,10.16692916]
[1753117098893,0.132,3779.0,3778.4,0.132]
[1753117098894,0.7745,3779.0,3777.7,0.7834]
[1753117099101,2.64640228,3778.8,3778.2,2.64675262]
[1753117099340,0.81167822,3778.7,3778.4,2.64661898]
[1753117099542,4.331,3778.6,3778.0,2.64690312]
[1753117099757,0.03308191,3778.5,3778.1,2.64680877]
[1753117099936,0.03308191,3778.5,3778.2,2.64675178]
[1753117100309,0.03308191,3778.5,3778.3,2.64668479]
[1753117100505,0.03308191,3778.5,3778.1,0.4722]
[1753117100741,0.2679,3778.9,3778.1,0.4722]
[1753117100742,14.5,3778.4,3778.3,2.64667672]
[1753117100947,14.5,3778.4,3778.2,2.64674465]
[1753117101329,14.5,3778.4,3778.3,2.64669295]
[1753117102350,14.5,3778.4,3778.2,2.64673725]
[1753117102926,14.5,3778.4,3778.3,2.64669295]
[1753117103741,14.5,3778.4,3778.2,2.64674993]
[1753117104353,14.5,3778.4,3778.3,2.64669295]
[1753117104548,18.827,3778.4,3778.2,2.64673869]
[1753117104752,18.827,3778.4,3778.3,2.64669295]
[1753117105653,18.827,3778.4,3778.2,2.64674023]
[1753117106253,18.827,3778.4,3778.2,2.64675183]
[1753117106453,0.03308366,3778.3,3777.7,0.7834]
[1753117106612,4.327,3778.2,3777.4,0.001]
[1753117106814,0.03308541,3778.1,3777.5,2.64725347]
[1753117107054,4.61344364,3778.0,3777.7,2.6471065]
[1753117107366,0.03308716,3777.9,3777.7,2.6471065]
[1753117107519,4.324,3777.8,3777.6,2.64716696]
[1753117107866,4.324,3777.8,3777.6,2.64712044]
[1753117108148,0.03308891,3777.7,3777.4,0.001]
[1753117108315,4.324,3777.6,3777.5,2.64725347]
[1753117108731,4.324,3777.6,3777.4,0.001]
[1753117108917,0.54635066,3777.5,3777.4,0.001]
[1753117109117,0.03309066,3777.5,3777.4,0.001]
[1753117109315,0.03308891,3777.7,3777.4,0.001]
[1753117109551,4.323,3777.5,3777.4,2.64826555]
[1753117110332,18.823,3777.5,3777.4,2.64826555]
[1753117112556,14.5,3777.5,3777.4,2.64826555]
[1753117112731,14.5,3777.5,3777.4,3.12046555]
[1753117113055,14.632,3777.5,3777.4,3.12046555]
[1753117113861,0.132,3777.5,3777.4,3.12046555]
[1753117114059,0.84968191,3778.5,3778.4,2.6466229]
[1753117114222,19.6356,3778.5,3778.2,2.64672374]
[1753117114444,0.03308278,3778.4,3778.3,2.64669295]
[1753117114956,21.59916,3778.5,3778.4,2.6466229]
[1753117115145,21.59916,3778.5,3778.3,2.64668253]
[1753117115347,0.03308278,3778.4,3778.3,2.64668253]
[1753117115969,4.35208278,3778.4,3777.5,2.64724861]
[1753117116147,0.132,3777.7,3777.6,2.64718339]
[1753117116586,0.132,3777.7,3777.5,2.64719785]
[1753117116745,0.132,3777.7,3777.4,0.001]
[1753117116746,4.45,3777.7,3777.4,0.001]
[1753117116946,0.03308979,3777.6,3777.4,0.001]
[1753117117255,4.317,3777.5,3777.4,2.64832355]
[1753117117960,4.317,3777.5,3777.4,0.001]
[1753117118363,18.817,3777.5,3777.4,0.001]
[1753117119446,14.5,3777.5,3777.4,0.001]
[1753117119649,18.815,3777.5,3777.4,0.001]
[1753117120050,18.815,3777.5,3777.4,2.64832355]
[1753117120671,18.815,3777.5,3777.4,0.001]
[1753117125435,20.47589262,3777.5,3777.4,0.001]
[1753117125672,21.29639262,3777.5,3777.4,0.001]
[1753117125814,27.76154609,3777.5,3777.4,0.001]
[1753117126717,27.87525463,3777.5,3777.4,0.001]
[1753117129232,23.56525463,3777.5,3777.4,0.001]
[1753117129416,27.87325463,3777.5,3777.4,0.001]
[1753117130764,27.87325463,3777.5,3775.8,0.001]
[1753117130765,2.64837522,3775.9,3775.8,0.001]
[1753117130949,7.71907522,3775.9,3775.8,0.001]
[1753117131555,22.21907522,3775.9,3775.8,0.001]
[1753117132442,19.5687,3775.9,3775.8,0.001]
[1753117132749,14.5,3775.9,3775.8,0.001]
[1753117132930,14.5,3775.9,3775.8,3.08004536]
[1753117133126,4.438,3776.1,3775.8,0.4316]
[1753117133326,4.438,3776.1,3775.9,7.05375644]
[1753117133549,0.132,3776.1,3776.0,3.07890508]
[1753117139071,0.132,3776.1,3776.0,2.64830508]
[1753117139568,0.132,3776.1,3776.0,3.07890508]
[1753117139733,14.632,3776.1,3776.0,3.07890508]
[1753117140168,0.132,3776.1,3776.0,3.07890508]
[1753117141267,0.8029,3777.9,3776.8,2.64770875]
[1753117141431,4.33308804,3777.8,3777.3,2.64736617]
[1753117141632,3.0,3777.6,3777.3,2.64736617]
[1753117141860,3.0,3777.6,3776.9,0.4306]
[1753117141861,4.3,3777.5,3777.4,2.64732355]
[1753117142469,0.7654,3777.4,3776.8,0.00721902]
[1753117142668,0.7654,3777.4,3776.3,0.9581]
[1753117142669,0.132,3776.8,3776.3,2.64805361]
[1753117142973,4.299,3776.7,3776.4,2.6479649]
[1753117143131,4.299,3776.6,3776.3,2.64807911]
[1753117143331,0.132,3776.4,3776.3,2.64809469]
[1753117143853,0.132,3776.4,3776.3,3.07869469]
[1753117144768,0.03309329,3777.2,3776.9,2.64762104]
[1753117145067,4.43185423,3777.1,3777.0,2.64760391]
[1753117145488,4.42985423,3777.1,3777.0,3.07820391]
[1753117145635,4.42985423,3777.1,3777.0,0.4306]
[1753117145833,4.42985423,3777.1,3776.6,0.4306]
[1753117146142,0.03309504,3777.0,3776.9,2.6476728]
[1753117146471,4.42985423,3777.1,3776.9,2.64765095]
[1753117146678,0.132,3776.9,3776.8,2.6477386]
[1753117146850,4.297,3777.1,3776.9,2.64765169]
[1753117147052,5.13757248,3777.1,3776.9,2.64765169]
[1753117147578,5.13757248,3777.1,3776.9,2.6476569]
[1753117148071,0.132,3776.9,3776.5,0.7588]
[1753117148374,0.66226675,3776.9,3776.8,2.64774412]
[1753117148670,0.03309504,3777.0,3776.8,2.64774412]
[1753117148871,0.03309504,3777.0,3774.9,0.7922]
[1753117148872,0.132,3776.8,3774.9,0.7922]
[1753117149045,3.0,3776.6,3775.5,0.4306]
[1753117149246,1.11288742,3776.5,3775.7,2.64850817]
[1753117149475,4.294,3776.4,3775.9,2.64833216]
[1753117149674,0.03310118,3776.3,3775.9,2.64833216]
[1753117149839,0.03310118,3776.3,3776.1,0.4306]
[1753117150369,4.294,3776.4,3776.1,0.4306]
[1753117150670,0.03310118,3776.3,3776.1,0.4306]
[1753117150875,4.294,3776.2,3776.1,0.4306]
[1753117151079,4.293,3776.2,3776.1,0.4306]
[1753117151264,0.132,3776.1,3776.0,0.001]
[1753117151443,4.425,3776.1,3776.0,0.001]
[1753117152174,4.87081012,3776.1,3776.0,0.001]
[1753117154423,4.90391305,3776.1,3776.0,0.001]
[1753117154594,4.87081012,3776.1,3776.0,0.001]
[1753117155102,7.552148,3776.1,3776.0,0.001]
[1753117155374,4.87081012,3776.1,3776.0,0.001]
[1753117155537,7.51904507,3776.1,3776.0,0.001]
[1753117155741,8.27724507,3776.1,3776.0,0.001]
[1753117157056,5.62901012,3776.1,3776.0,0.001]
[1753117157259,8.310348,3776.1,3776.0,0.001]
[1753117157481,8.27724507,3776.1,3776.0,0.001]
[1753117158481,5.62901012,3776.1,3776.0,0.001]
[1753117158641,5.66211305,3776.1,3776.0,0.001]
[1753117159482,11.310348,3776.1,3776.0,0.001]
[1753117159791,11.96314507,3776.1,3776.0,0.001]
[1753117163295,19.03189593,3776.1,3776.0,0.001]
[1753117163686,26.84189593,3776.1,3776.0,1e-08]
[1753117163890,6.97458565,3775.6,3775.5,0.001]
[1753117164098,19.55548289,3775.6,3775.5,0.001]
[1753117164613,19.65448289,3775.6,3775.5,0.001]
[1753117165300,19.65448289,3775.6,3775.5,1e-08]
[1753117165301,23.34118129,3775.6,3775.5,1e-08]
[1753117165863,12.58573203,3775.6,3775.5,1e-08]
[1753117167163,3.98021715,3774.7,3774.5,0.001]
[1753117167364,11.26421715,3774.7,3774.5,0.001]
[1753117167661,11.26421715,3774.7,3774.6,1e-08]
[1753117167662,11.36321715,3774.7,3774.6,1e-08]
[1753117168113,11.56552872,3774.7,3774.6,1e-08]
[1753117169700,7.28252872,3774.7,3774.6,1e-08]
[1753117170015,13.53523976,3774.7,3774.6,1e-08]
[1753117170220,9.25223976,3774.7,3774.6,1e-08]
[1753117170370,8.49892819,3774.7,3774.6,1e-08]
[1753117170680,12.78092819,3774.7,3774.6,1e-08]
[1753117170877,13.59882819,3774.7,3774.6,1e-08]
[1753117171904,13.79915981,3774.7,3774.6,1e-08]
[1753117172200,7.10798734,3774.6,3774.5,1e-08]
[1753117172366,8.75281253,3774.6,3774.5,1e-08]
[1753117172567,19.65871253,3774.6,3774.5,1e-08]
[1753117173679,7.03087874,3773.9,3773.8,0.001]
[1753117173887,22.77041587,3773.9,3773.8,0.001]
[1753117174221,23.03831587,3773.9,3773.8,0.001]
[1753117174419,12.01396661,3773.9,3773.8,0.001]
[1753117174602,12.28186661,3773.9,3773.8,0.001]
[1753117176405,12.13856282,3773.9,3773.8,0.001]
[1753117176905,12.13856282,3773.9,3773.8,1e-08]
[1753117177108,12.40646282,3773.9,3773.8,1e-08]
[1753117177292,12.40546282,3773.9,3773.8,1e-08]
[1753117177873,8.12646282,3773.9,3773.8,1e-08]
[1753117178213,12.40546282,3773.9,3773.8,1e-08]
[1753117178809,15.93646282,3773.9,3773.8,1e-08]
[1753117179010,19.94656282,3773.9,3773.8,1e-08]
[1753117179495,15.66856282,3773.9,3773.8,1e-08]
[1753117179675,19.94656282,3773.9,3773.8,1e-08]
[1753117181117,15.66856282,3773.9,3773.8,1e-08]
[1753117181413,19.94556282,3773.9,3773.8,1e-08]
[1753117181775,8.02363986,3774.6,3773.8,0.43770001]
[1753117181976,4.31011696,3774.5,3773.8,0.43770001]
[1753117182193,4.31011696,3774.5,3774.1,2.6496322]
[1753117182393,4.31011696,3774.5,3774.2,0.4377]
[1753117182576,4.31011696,3774.5,3774.2,3.0872668]
[1753117182775,4.31011696,3774.5,3774.3,0.4377]
[1753117182776,0.03311696,3774.5,3774.3,0.4377]
[1753117183091,6.37881467,3774.6,3774.4,0.8181]
[1753117183294,4.30911696,3774.5,3774.4,0.8181]
[1753117183828,4.30911696,3774.5,3774.4,3.90522772]
[1753117184040,6.37881467,3774.6,3774.5,2.64935753]
[1753117184248,0.02181467,3774.6,3774.5,3.08705753]
[1753117184516,3.44315252,3776.0,3775.5,3.4193558]
[1753117184517,0.03310732,3775.6,3775.5,3.4193558]
[1753117184722,0.03310469,3775.9,3775.8,2.64844536]
[1753117184890,3.0,3776.0,3775.9,2.64836003]
[1753117185219,0.132,3775.9,3775.8,2.64842441]
[1753117185519,0.132,3775.9,3775.5,3.4193499]
[1753117185520,0.03310381,3776.0,3775.9,2.64837522]
[1753117185692,0.03309943,3776.5,3776.0,2.64826158]
[1753117185894,0.132,3776.0,3775.6,2.64858098]
[1753117186095,4.30810469,3775.9,3775.8,2.64844464]
[1753117186293,4.30810469,3775.9,3775.5,3.41934474]
[1753117186490,0.132,3775.6,3775.5,3.41934474]
[1753117186695,18.907,3775.6,3775.5,3.41934474]
[1753117186894,18.907,3775.6,3775.5,0.7707]
[1753117187090,18.907,3775.6,3775.5,1.223]
[1753117187295,14.632,3775.6,3775.5,1.223]
[1753117187514,14.632,3775.6,3775.5,3.8716558]
[1753117187721,18.905,3775.6,3775.5,3.8716558]
[1753117188482,18.905,3775.6,3773.7,0.001]
[1753117188483,3.47491715,3774.7,3773.7,0.001]
[1753117188696,17.230928,3773.9,3773.7,0.001]
[1753117188918,6.19984895,3773.8,3773.7,1e-08]
[1753117189079,22.32297206,3773.8,3773.7,1e-08]
[1753117189284,26.83174895,3773.8,3773.7,1e-08]
[1753117189691,26.56784895,3773.8,3773.7,1e-08]
[1753117189895,27.60438288,3773.8,3773.7,1e-08]
[1753117190485,23.32738288,3773.8,3773.7,1e-08]
[1753117190687,27.60438288,3773.8,3773.7,1e-08]
[1753117191310,23.52674322,3773.8,3773.7,1e-08]
[1753117191515,27.80174322,3773.8,3773.7,1e-08]
[1753117192092,22.97674322,3773.8,3773.7,1e-08]
[1753117192319,27.25174322,3773.8,3773.7,1e-08]
[1753117192822,24.60189427,3773.8,3773.7,1e-08]
[1753117193019,20.32689427,3773.8,3773.7,1e-08]
[1753117193222,24.60089427,3773.8,3773.7,1e-08]
[1753117193519,27.25074322,3773.8,3773.7,1e-08]
[1753117194188,22.97674322,3773.8,3773.7,1e-08]
[1753117194523,27.24974322,3773.8,3773.7,1e-08]
[1753117194721,23.52674322,3773.8,3773.7,1e-08]
[1753117194923,27.80674322,3773.8,3773.7,1e-08]
[1753117195127,27.80574322,3773.8,3773.7,1e-08]
[1753117195504,28.07364322,3773.8,3773.7,1e-08]
[1753117195804,28.85084322,3773.8,3773.7,1e-08]
[1753117197423,28.58294322,3773.8,3773.7,1e-08]
[1753117198301,28.85084322,3773.8,3773.7,1e-08]
[1753117198820,28.58294322,3773.8,3773.7,1e-08]
[1753117199025,9.6809788,3773.6,3770.1,0.001]
[1753117199228,1.3207,3773.7,3770.1,0.001]
[1753117199229,6.20202747,3770.7,3770.1,0.001]
[1753117199430,6.23517781,3770.7,3770.1,0.001]
[1753117199736,3.20237918,3770.2,3770.1,0.001]
[1753117200023,7.62253391,3770.2,3770.1,0.001]
[1753117200226,7.58937918,3770.2,3770.1,0.001]
[1753117200525,22.08937918,3770.2,3770.1,0.001]
[1753117200724,17.70237918,3770.2,3770.1,0.001]
[1753117200887,22.08737918,3770.2,3770.1,0.001]
[1753117201093,27.56134237,3770.2,3770.1,0.001]
[1753117201287,23.94194237,3770.2,3770.1,0.001]
[1753117201494,28.32494237,3770.2,3770.1,0.001]
[1753117202012,28.59284237,3770.2,3770.1,0.001]
[1753117202214,28.59284237,3770.2,3770.1,1e-08]
[1753117202427,23.94194237,3770.2,3770.1,1e-08]
[1753117203013,28.59884237,3770.2,3770.1,1e-08]
[1753117203214,3.20259025,3769.9,3769.8,1e-08]
[1753117203416,6.20266061,3769.8,3769.7,1e-08]
[1753117203716,7.26406061,3769.8,3769.7,1e-08]
[1753117204028,21.76406061,3769.8,3769.7,1e-08]
[1753117204233,0.8042,3768.3,3767.3,0.4523]
[1753117204398,0.8042,3768.3,3766.8,3.48584634]
[1753117204399,0.03317233,3768.2,3767.8,2.65405368]
[1753117204590,0.03317233,3768.2,3766.5,0.00738983]
[1753117204591,0.55,3768.3,3767.2,0.4523]
[1753117204927,14.5,3767.6,3767.5,0.8311]
[1753117205228,21.909,3767.6,3767.5,1.2834]
[1753117205427,18.909,3767.6,3767.1,0.4523]
[1753117205628,3.0331785,3767.5,3767.2,0.4523]
[1753117205931,4.409,3767.4,3767.3,0.4523]
[1753117206228,9.86863946,3767.4,3766.9,0.4523]
[1753117206432,9.86863946,3767.4,3767.0,0.4523]
[1753117206433,3.03318026,3767.3,3767.0,0.4523]
[1753117206603,3.03318026,3767.3,3766.3,0.752]
[1753117206604,4.408,3767.2,3766.3,0.752]
[1753117206789,6.363,3768.5,3767.2,0.752]
[1753117206995,3.55,3768.1,3767.3,3.10670727]
[1753117207218,3.0,3767.9,3767.4,0.4523]
[1753117207412,1.34571218,3768.1,3767.4,0.4523]
[1753117207413,3.0,3767.7,3767.4,0.4523]
[1753117207695,6.363,3768.5,3767.5,0.4523]
[1753117208324,3.0,3768.3,3768.0,2.65387629]
[1753117208526,4.411,3768.2,3768.1,0.4523]
[1753117208727,4.411,3768.2,3767.2,0.752]
[1753117208728,4.44417233,3768.2,3767.8,2.65402116]
[1753117208907,4.44417233,3768.2,3767.9,2.65399137]
[1753117209092,0.132,3767.9,3767.8,2.65406868]
[1753117209293,0.132,3767.6,3767.5,2.65428002]
[1753117209894,0.132,3767.6,3767.5,3.10658002]
[1753117211293,9.21630143,3768.5,3767.5,3.10658002]
[1753117211294,2.65261021,3769.9,3767.6,0.8027]
[1753117211521,0.03316441,3769.1,3769.0,2.65322366]
[1753117211727,0.19953624,3769.7,3769.6,2.65280135]
[1753117211998,0.796812,3770.2,3770.1,2.65244953]
[1753117212202,4.406,3770.2,3770.1,2.65244953]
[1753117212398,14.5,3771.1,3770.7,2.65202747]
[1753117212599,4.4391477,3771.0,3770.9,2.65188681]
[1753117212904,14.5,3771.1,3771.0,3.10411649]
[1753117212905,18.905,3771.1,3771.0,3.10411649]
[1753117213322,14.5,3771.1,3771.0,3.10411649]
[1753117213529,4.405,3771.4,3771.3,3.47680554]
[1753117213732,0.2679,3773.1,3771.3,3.47680554]
[1753117213733,0.03314155,3771.7,3771.6,2.65139463]
[1753117214032,4.404,3771.9,3771.6,0.4523]
[1753117214200,4.403,3772.0,3771.3,3.47675324]
[1753117214403,4.403,3772.0,3771.9,2.65118375]
[1753117214713,4.403,3772.0,3771.9,3.10348375]
[1753117214906,4.403,3772.0,3771.9,0.4523]
[1753117215106,4.403,3772.0,3771.9,3.10348375]
[1753117215318,14.5,3772.8,3772.0,2.65108779]
[1753117215518,6.11404501,3772.7,3771.9,0.4523]
[1753117215833,3.0,3772.6,3772.0,2.65111346]
[1753117216030,6.11404501,3772.7,3771.9,0.4523]
[1753117216234,4.399,3772.7,3772.0,0.4523]
[1753117216411,0.03313364,3772.6,3772.0,0.4523]
[1753117216801,0.03313364,3772.6,3771.7,2.65127218]
[1753117216802,3.0,3772.4,3771.7,2.65127218]
[1753117217004,3.0,3772.2,3771.6,0.4347]
[1753117217206,4.42813803,3772.1,3771.6,0.4347]
[1753117217417,4.394,3772.0,3771.7,0.4347]
[1753117217612,0.03313979,3771.9,3771.7,0.4347]
[1753117218020,4.394,3772.0,3771.8,0.4347]
[1753117218314,4.391,3772.1,3772.0,2.65111346]
[1753117218530,17.15056479,3772.8,3772.0,2.65111346]
[1753117218531,3.0,3772.7,3772.2,2.6509385]
[1753117218727,3.0,3772.5,3772.3,0.4347]
[1753117218921,0.0331354,3772.4,3772.3,0.4347]
[1753117219130,3.0,3772.5,3772.3,3.08554228]
[1753117219131,0.03313452,3772.5,3772.3,3.08554228]
[1753117219450,14.5,3772.8,3771.4,0.0073087]
[1753117219451,4.39,3772.6,3772.4,0.4347]
[1753117219675,0.03313452,3772.5,3771.6,0.00730792]
[1753117219953,4.63243457,3772.5,3772.0,0.4347]
[1753117220149,3.0,3772.4,3772.0,0.4347]
[1753117220363,4.391,3772.3,3772.1,0.4347]
[1753117220660,4.391,3772.3,3772.2,3.0856729]
[1753117220811,4.391,3772.3,3772.2,0.4347]
[1753117221447,0.132,3772.2,3771.9,2.65116398]
[1753117221768,0.70263026,3772.2,3772.1,2.65104318]
[1753117222060,0.0331354,3772.4,3772.3,2.65090263]
[1753117222262,4.387,3772.5,3772.4,3.47273236]
[1753117222559,4.387,3772.5,3772.4,0.8219]
[1753117222848,0.132,3772.4,3772.3,2.65090263]
[1753117223011,6.27901328,3772.5,3772.4,0.4347]
[1753117223435,4.387,3772.5,3772.4,3.08553236]
[1753117223639,14.5,3772.8,3772.5,2.65076209]
[1753117223875,14.5,3772.8,3772.7,2.65062157]
[1753117224062,14.5,3772.8,3772.7,0.4347]
[1753117224843,18.881,3772.8,3772.7,0.4347]
[1753117225048,0.132,3772.7,3772.3,0.4347]
[1753117225244,2.65077196,3772.5,3771.8,2.65123055]
[1753117225455,4.4101354,3772.4,3771.9,1.2566]
[1753117225782,14.5,3772.8,3772.5,2.65076209]
[1753117225938,14.5,3772.8,3772.6,0.4347]
[1753117226138,14.5,3772.8,3772.7,0.4347]
[1753117226342,14.5,3772.8,3772.7,3.08532157]
[1753117226852,5.64993795,3773.7,3772.8,2.65054362]
[1753117227168,3.0,3773.5,3773.1,2.65032496]
[1753117227379,3.0,3773.5,3773.2,0.4347]
[1753117227380,0.03312662,3773.4,3773.2,0.4347]
[1753117227581,4.374,3773.3,3773.1,2.65033894]
[1753117227752,0.03312837,3773.2,3773.1,2.65033894]
[1753117227942,4.373,3773.2,3773.0,2.65040761]
[1753117228140,0.03312486,3773.6,3773.2,2.65024949]
[1753117228345,3.0,3773.4,3773.1,0.4347]
[1753117228545,3.03312662,3773.4,3773.2,0.4347]
[1753117228741,14.5,3773.3,3773.2,2.65020425]
[1753117229195,18.869,3773.3,3772.8,2.65051596]
[1753117229376,18.869,3773.3,3772.9,0.4347]
[1753117229553,18.869,3773.3,3773.2,2.65027032]
[1753117229749,18.869,3773.3,3773.2,3.08497032]
[1753117229955,14.5,3773.3,3773.2,3.08497032]
[1753117230464,7.81,3774.5,3773.8,2.64980073]
[1753117230794,7.81,3774.5,3773.9,0.4347]
[1753117230795,5.98764302,3774.4,3773.9,0.4347]
[1753117231030,2.64982774,3773.9,3773.6,0.8307]
[1753117231242,5.64993667,3773.7,3773.2,0.4347]
[1753117231452,0.03312486,3773.6,3772.6,0.4347]
[1753117231590,2.65035728,3773.1,3772.6,0.4347]
[1753117231795,14.53313013,3773.0,3772.9,2.65048106]
[1753117232034,18.862,3773.0,3772.8,2.65053767]
[1753117232246,18.862,3773.0,3772.4,3.08550021]
[1753117232594,18.862,3773.0,3772.4,0.4347]
[1753117232843,2.65060285,3772.8,3772.0,3.08581267]
[1753117233055,3.0,3772.6,3772.0,0.4347]
[1753117233197,4.39513452,3772.5,3772.0,0.4347]
[1753117233403,4.362,3772.4,3772.1,2.65098009]
[1753117233629,0.03313628,3772.3,3772.1,3.08568009]
[1753117233938,0.03313628,3772.3,3772.2,0.4347]
[1753117234655,0.03313628,3772.3,3771.6,0.7648]
[1753117234656,0.47264991,3772.3,3771.8,0.4347]
[1753117234865,4.39313628,3772.3,3771.8,3.08594233]
[1753117235038,4.39313628,3772.3,3771.8,0.4347]
[1753117235571,4.39313628,3772.3,3771.8,3.08588984]
[1753117235732,4.39313628,3772.3,3771.9,2.65115256]
[1753117235932,0.43931363,3772.2,3771.8,3.0859171]
[1753117236268,0.03313803,3772.1,3771.9,0.4347]
[1753117236451,4.357,3772.0,3771.9,3.08586987]
[1753117236827,4.357,3772.0,3771.9,0.4347]
[1753117237071,4.357,3772.0,3771.2,0.001]
[1753117237072,0.132,3771.9,3771.2,0.7965]
[1753117237281,0.132,3771.6,3771.3,2.65159536]
[1753117237431,4.351,3771.5,3771.2,0.7965]
[1753117237636,0.03314419,3771.4,3771.3,0.4347]
[1753117237941,0.03314419,3771.4,3771.3,3.08630554]
[1753117238144,0.03314419,3771.4,3771.3,0.4347]
[1753117238362,0.03314419,3771.4,3771.3,3.08630554]
[1753117238662,0.03314419,3771.4,3771.3,0.4347]
[1753117239864,0.132,3771.3,3771.2,0.001]
[1753117240065,3.132,3771.3,3771.2,0.001]
[1753117240238,0.132,3771.3,3771.2,0.001]
[1753117240563,2.78360554,3771.3,3771.2,0.001]
[1753117240767,1.45776522,3771.3,3771.2,0.001]
[1753117241075,0.132,3771.3,3771.2,3.08737585]
[1753117241241,4.475,3771.3,3771.2,3.08737585]
[1753117241843,4.50814506,3771.3,3771.2,3.08737585]
[1753117242045,7.475,3771.3,3771.2,0.001]
[1753117243170,10.12660554,3771.3,3771.2,0.001]
[1753117243376,11.40441479,3771.3,3771.2,0.001]
[1753117244048,8.75280925,3771.3,3771.2,0.001]
[1753117244249,0.132,3771.3,3771.2,2.65267585]
[1753117244560,4.34,3771.3,3771.2,3.08737585]
[1753117244745,4.34,3771.3,3771.2,0.001]
[1753117244949,4.37314506,3771.3,3771.2,2.65267585]
[1753117245259,0.03314331,3771.5,3771.4,2.65153523]
[1753117245462,0.03314331,3771.5,3771.2,2.65265354]
[1753117245463,4.34,3771.5,3771.2,2.65265354]
[1753117245776,0.03314419,3771.4,3771.3,3.08630554]
[1753117245991,0.47045861,3771.4,3771.2,0.001]
[1753117247271,3.47045861,3771.4,3771.2,0.001]
[1753117249269,9.98560554,3771.3,3771.2,0.001]
[1753117249799,10.23149895,3771.3,3771.2,0.001]
[1753117249999,11.56352806,3771.3,3771.2,0.001]
[1753117250204,8.91192252,3771.3,3771.2,0.001]
[1753117251221,11.56352806,3771.3,3771.2,0.001]
[1753117251513,12.11352806,3771.3,3771.2,0.001]
[1753117251873,9.46192252,3771.3,3771.2,0.001]
[1753117252470,12.11328389,3771.3,3771.2,0.001]
[1753117252705,12.11332807,3771.3,3771.2,0.001]
[1753117253310,9.46172253,3771.3,3771.2,0.001]
[1753117253599,9.21602911,3771.3,3771.2,0.001]
[1753117253811,4.88202911,3771.3,3771.2,0.001]
[1753117254107,10.5577506,3771.3,3771.2,0.001]
[1753117254281,10.52460554,3771.3,3771.2,0.001]
[1753117254675,10.79250554,3771.3,3771.2,0.001]
[1753117255214,10.65105285,3771.3,3771.2,0.001]
[1753117255384,3.0,3771.3,3771.2,0.001]
[1753117255576,3.59829702,3771.3,3771.2,0.001]
[1753117255775,7.34814506,3771.3,3771.2,0.001]
[1753117256018,7.315,3771.3,3771.2,0.001]
[1753117256209,0.7637,3772.1,3771.2,0.4374]
[1753117256511,4.34813979,3771.9,3771.2,0.4374]
[1753117256707,0.43481398,3771.8,3771.5,2.65145738]
[1753117256873,0.03314155,3771.7,3771.2,0.4374]
[1753117257206,4.314,3771.6,3771.5,2.65146493]
[1753117257417,3.0,3771.5,3771.2,0.001]
[1753117257593,3.132,3771.3,3771.2,0.001]
[1753117257912,0.87991442,3771.3,3771.2,0.001]
[1753117258112,7.444,3771.3,3771.2,0.001]
[1753117258418,7.443,3771.3,3771.2,0.001]
[1753117258777,4.442,3771.3,3771.2,3.08907585]
[1753117258980,4.442,3771.3,3771.0,2.65177185]
[1753117259219,0.132,3771.0,3770.5,0.7688]
[1753117259414,0.03314594,3771.2,3770.5,0.7688]
[1753117259415,4.309,3770.9,3770.5,0.7688]
[1753117259575,4.34214946,3770.8,3770.5,3.42092336]
[1753117259788,4.34214946,3770.8,3770.7,2.65202747]
[1753117260291,0.43481398,3771.8,3770.5,0.7688]
[1753117260510,0.132,3770.8,3770.7,2.65202747]
[1753117260946,0.132,3770.8,3770.7,3.08842747]
[1753117261251,0.03314682,3771.1,3771.0,2.65181649]
[1753117261389,4.305,3771.1,3770.6,0.00733097]
[1753117261600,4.305,3771.1,3771.0,3.08821649]
[1753117263105,0.03314331,3771.5,3771.4,2.65153523]
[1753117263324,0.03313979,3771.9,3771.4,3.41982647]
[1753117263626,4.301,3771.8,3771.6,2.65137761]
[1753117263825,4.301,3771.8,3771.6,3.08777761]
[1753117263993,7.301,3771.8,3771.7,2.65132433]
[1753117264413,7.301,3771.8,3771.6,0.4364]
[1753117264616,0.03314155,3771.7,3771.5,2.65144027]
[1753117265008,0.03314155,3771.7,3771.4,3.41982067]
[1753117265211,0.80026285,3771.7,3771.3,2.65158252]